bitfinex/quotes_BTCUSD_20251113
["timestamp","ask_amount","ask_price","bid_price","bid_amount"]
[1763026659292,0.78012386,103100.0,103090.0,0.0454797]
[1763026659510,1.73337088,103100.0,103090.0,0.0030397]
[1763026659950,1.46743648,103100.0,103090.0,0.0030397]
[1763026660163,1.50987648,103100.0,103090.0,0.0230397]
[1763026660619,1.50987648,103100.0,103090.0,0.0030397]
[1763026660836,1.50987648,103100.0,103090.0,0.0230397]
[1763026661051,1.50987648,103100.0,103090.0,0.0030397]
[1763026661270,1.73337088,103100.0,103090.0,0.0030397]
[1763026661488,1.49087088,103100.0,103090.0,0.0030397]
[1763026661697,1.49087088,103100.0,103090.0,0.0230397]
[1763026661916,1.26737648,103100.0,103090.0,0.0230397]
[1763026662126,1.26737648,103100.0,103090.0,0.0030397]
[1763026664073,1.49087088,103100.0,103090.0,0.0030397]
[1763026664951,1.26737648,103100.0,103090.0,0.0030397]
[1763026665163,1.27635631,103100.0,103090.0,0.0030397]
[1763026665445,1.26737648,103100.0,103090.0,0.0030397]
[1763026665668,1.26737648,103100.0,103090.0,0.0230397]
[1763026665880,1.26737648,103100.0,103090.0,0.0030397]
[1763026666288,1.4998519,103100.0,103090.0,0.0030397]
[1763026667122,1.4574119,103100.0,103090.0,0.0030397]
[1763026669882,1.43953142,103100.0,103090.0,0.0030397]
[1763026670043,1.45749324,103100.0,103090.0,0.0030397]
[1763026671464,2.14797662,103100.0,103090.0,0.0030397]
[1763026671679,2.14797662,103100.0,103060.0,0.2140615]
[1763026671680,0.19404119,103080.0,103060.0,0.2140615]
[1763026671890,0.31413879,103070.0,103060.0,0.21452727]
[1763026672105,0.32560879,103070.0,103060.0,0.21452727]
[1763026672313,0.56024736,103070.0,103060.0,0.21452727]
[1763026673182,0.54877736,103070.0,103060.0,0.21552727]
[1763026673355,0.13124008,103070.0,103060.0,0.21652727]
[1763026673560,0.08303569,103070.0,103060.0,0.19652727]
[1763026673762,0.08303569,103070.0,103060.0,0.43902167]
[1763026674004,0.13124008,103070.0,103060.0,0.21552727]
[1763026674161,0.32528296,103070.0,103060.0,0.21652727]
[1763026674555,0.32528296,103070.0,103060.0,0.21552727]
[1763026674810,0.28284296,103070.0,103060.0,0.21552727]
[1763026675003,0.32528296,103070.0,103060.0,0.19552727]
[1763026675205,0.13124008,103070.0,103060.0,0.21552727]
[1763026675358,0.20961409,103070.0,103060.0,0.21452727]
[1763026675773,0.40365697,103070.0,103060.0,0.21452727]
[1763026675980,0.20961409,103070.0,103060.0,0.21452727]
[1763026676195,0.40365697,103070.0,103060.0,0.21452727]
[1763026676553,0.20961409,103070.0,103060.0,0.21452727]
[1763026676878,0.13124008,103070.0,103060.0,0.21452727]
[1763026677475,0.13124008,103070.0,103060.0,0.45038167]
[1763026677596,0.11977008,103070.0,103060.0,0.49011167]
[1763026677961,0.11977008,103070.0,103060.0,0.24198727]
[1763026678589,0.02912569,103070.0,103060.0,0.71360607]
[1763026678818,0.04244,103080.0,103070.0,0.19403388]
[1763026679025,0.11976694,103080.0,103070.0,0.21403388]
[1763026679238,0.31379099,103080.0,103070.0,0.21403388]
[1763026679445,0.32526099,103080.0,103070.0,0.21403388]
[1763026679875,0.3619492,103080.0,103070.0,0.21404288]
[1763026680089,0.3629492,103080.0,103070.0,0.19404288]
[1763026680297,0.3629492,103080.0,103070.0,0.21404288]
[1763026680522,0.19404288,103070.0,103060.0,0.00046577]
[1763026680740,0.27382909,103070.0,103060.0,0.00046577]
[1763026680954,0.27382909,103070.0,103060.0,0.24639748]
[1763026680955,0.05684621,103070.0,103060.0,0.24639748]
[1763026681208,0.30327673,103080.0,103060.0,0.69338628]
[1763026681209,0.26658682,103080.0,103060.0,0.69338628]
[1763026681436,0.19404288,103070.0,103060.0,0.69338628]
[1763026681656,0.19404288,103070.0,103060.0,0.46989188]
[1763026681891,0.19404288,103070.0,103060.0,0.25190017]
[1763026682103,0.20551288,103070.0,103060.0,0.00046577]
[1763026682545,0.44047728,103070.0,103060.0,0.00046577]
[1763026682962,0.21698288,103070.0,103060.0,0.00046577]
[1763026683220,0.56359571,103070.0,103060.0,0.00046577]
[1763026683428,0.26518727,103070.0,103060.0,0.00046577]
[1763026683634,0.56359571,103070.0,103060.0,0.00046577]
[1763026685555,0.60701445,103070.0,103060.0,0.00046577]
[1763026686430,1.23842288,103070.0,103060.0,0.00046577]
[1763026686640,1.33482236,103070.0,103060.0,0.00046577]
[1763026688172,1.33582236,103070.0,103060.0,0.00046577]
[1763026688655,1.40744039,103070.0,103060.0,0.00046577]
[1763026689122,1.4398804,103070.0,103060.0,0.00046577]
[1763026689557,1.3974404,103070.0,103060.0,0.00046577]
[1763026689792,1.4398804,103070.0,103060.0,0.00046577]
[1763026692639,1.46901395,103070.0,103060.0,0.00046577]
[1763026693900,1.39739592,103070.0,103060.0,0.00046577]
[1763026697099,0.75813904,103070.0,103060.0,0.00046577]
[1763026697316,1.002588,103070.0,103060.0,0.00046577]
[1763026698366,0.960148,103070.0,103060.0,0.00046577]
[1763026698579,1.002588,103070.0,103060.0,0.00046577]
[1763026699407,0.960148,103070.0,103060.0,0.00046577]
[1763026699618,0.95916926,103070.0,103060.0,0.00046577]
[1763026699825,0.59372926,103070.0,103060.0,0.00046577]
[1763026700028,0.66562713,103070.0,103060.0,0.00046577]
[1763026701984,0.70904587,103070.0,103060.0,0.00046577]
[1763026704778,1.33045431,103070.0,103060.0,0.00046577]
[1763026706131,1.03204587,103070.0,103060.0,0.00046577]
[1763026707026,1.33045431,103070.0,103060.0,0.00046577]
[1763026708340,1.3404543,103070.0,103060.0,0.00046577]
[1763026709068,1.2980143,103070.0,103060.0,0.00046577]
[1763026709273,1.3404543,103070.0,103060.0,0.00046577]
[1763026709713,1.41164309,103070.0,103060.0,0.00046577]
[1763026710396,0.19413706,103020.0,103010.0,0.0004]
[1763026710614,0.5154855,103020.0,103010.0,0.00053554]
[1763026710822,0.02294,103020.0,103010.0,0.01257554]
[1763026711036,0.01147,103020.0,103010.0,0.54915289]
[1763026711241,0.01147,103020.0,103010.0,0.25074445]
[1763026711453,0.01147,103020.0,103010.0,0.27525445]
[1763026711679,0.20560706,103020.0,103010.0,0.05958855]
[1763026711888,0.21707706,103020.0,103010.0,0.00353554]
[1763026712094,0.22854706,103020.0,103010.0,0.00353554]
[1763026712526,0.21707706,103020.0,103010.0,0.00353554]
[1763026712744,0.21707706,103020.0,103010.0,0.00153554]
[1763026712962,0.22854706,103020.0,103010.0,0.00153554]
[1763026713176,0.21707706,103020.0,103010.0,0.02901554]
[1763026713391,0.21707706,103020.0,103010.0,0.01457554]
[1763026713734,0.21707706,103020.0,103010.0,0.20873144]
[1763026713974,0.21707706,103020.0,103010.0,0.01457554]
[1763026714773,0.21707706,103020.0,103010.0,0.20873144]
[1763026714979,0.01147,103020.0,103010.0,0.24868144]
[1763026715184,0.24900695,103030.0,103020.0,0.19413706]
[1763026715385,0.54741539,103030.0,103020.0,0.04244]
[1763026715597,0.55888539,103030.0,103020.0,0.04244]
[1763026717402,0.57035539,103030.0,103020.0,0.04244]
[1763026719526,0.27194695,103030.0,103020.0,0.04244]
[1763026719734,0.55888539,103030.0,103020.0,0.04244]
[1763026720163,0.80138539,103030.0,103020.0,0.04244]
[1763026721402,0.81285539,103030.0,103020.0,0.04244]
[1763026725160,0.50297695,103030.0,103020.0,0.04244]
[1763026725361,0.43661821,103030.0,103020.0,0.5869755]
[1763026725567,0.2425,103030.0,103020.0,0.5869755]
[1763026726210,0.2425,103030.0,103020.0,0.88538394]
[1763026726414,0.2425,103030.0,103020.0,0.5869755]
[1763026727339,0.43661821,103030.0,103020.0,0.5869755]
[1763026727773,0.2425,103030.0,103020.0,0.5869755]
[1763026727979,0.2425,103030.0,103020.0,0.28856706]
[1763026728183,0.2425,103030.0,103020.0,0.5869755]
[1763026732103,0.26544,103030.0,103010.0,0.00053554]
[1763026732314,0.26544,103030.0,103010.0,0.05497554]
[1763026732315,0.19413706,103020.0,103010.0,0.05497554]
[1763026732567,0.43661821,103030.0,103020.0,0.02748]
[1763026732772,0.20556938,103040.0,103020.0,0.5445355]
[1763026732981,0.20556938,103040.0,103030.0,0.06988]
[1763026733402,0.20556938,103040.0,103030.0,0.28850821]
[1763026733611,0.20556938,103040.0,103030.0,0.09439]
[1763026734427,0.20556938,103040.0,103030.0,0.06988]
[1763026734961,0.20656938,103040.0,103030.0,0.26399821]
[1763026735233,0.20656938,103040.0,103030.0,0.06988]
[1763026736508,0.21803938,103040.0,103030.0,0.05444]
[1763026736961,0.21803938,103040.0,103030.0,0.0424]
[1763026737695,0.22950938,103040.0,103030.0,0.0424]
[1763026739723,0.19411821,103030.0,103020.0,0.01204]
[1763026739936,0.21803938,103040.0,103030.0,0.20611821]
[1763026740134,0.20656938,103040.0,103030.0,0.20611821]
[1763026740376,0.20656938,103040.0,103030.0,0.22250821]
[1763026741031,0.20656938,103040.0,103030.0,0.04839]
[1763026741252,0.20556938,103040.0,103030.0,0.22250821]
[1763026741463,0.20556938,103040.0,103030.0,0.24250821]
[1763026741671,0.20556938,103040.0,103030.0,0.0729]
[1763026741885,0.01147,103040.0,103030.0,0.24701821]
[1763026742128,0.19409937,103040.0,103030.0,0.24701821]
[1763026742315,0.001,103040.0,103030.0,0.26701821]
[1763026742791,0.001,103040.0,103030.0,0.69352643]
[1763026743004,0.001,103040.0,103030.0,0.52135461]
[1763026743221,0.001,103040.0,103030.0,0.59001821]
[1763026743638,0.001,103040.0,103030.0,0.84435461]
[1763026744326,0.20951113,103060.0,103050.0,0.21408054]
[1763026744532,0.20951113,103060.0,103050.0,0.08984]
[1763026744738,0.20951113,103060.0,103050.0,0.06984]
[1763026744951,0.20951113,103060.0,103050.0,0.08984]
[1763026745157,0.20951113,103060.0,103050.0,0.30705054]
[1763026745568,0.21151113,103060.0,103050.0,0.09297]
[1763026745773,0.21151113,103060.0,103050.0,0.08984]
[1763026745978,0.21251113,103060.0,103050.0,0.06984]
[1763026746183,0.21251113,103060.0,103050.0,0.26392054]
[1763026746392,0.21251113,103060.0,103050.0,0.28392054]
[1763026746897,0.21251113,103060.0,103050.0,0.08984]
[1763026747310,0.22398113,103060.0,103050.0,0.06984]
[1763026747528,0.21251113,103060.0,103050.0,0.26392054]
[1763026747732,0.00874,103060.0,103050.0,0.28705054]
[1763026747969,0.20280171,103060.0,103050.0,0.30705054]
[1763026750303,0.20280171,103060.0,103050.0,0.28705054]
[1763026750529,0.22574171,103060.0,103050.0,0.0424]
[1763026750739,0.00874,103060.0,103050.0,0.30705054]
[1763026751152,0.00874,103060.0,103050.0,0.28705054]
[1763026751574,0.00874,103060.0,103050.0,0.30705054]
[1763026752000,0.003,103060.0,103050.0,0.56138694]
[1763026753070,0.003,103060.0,103050.0,0.54138694]
[1763026753281,0.001,103060.0,103050.0,0.30705054]
[1763026753498,0.002,103060.0,103050.0,0.30705054]
[1763026753725,0.002,103060.0,103050.0,0.56138694]
[1763026753934,0.001,103060.0,103050.0,0.56138694]
[1763026755007,0.20955443,103080.0,103050.0,0.56138694]
[1763026755210,0.21772041,103080.0,103070.0,0.22148288]
[1763026755448,0.21772041,103080.0,103070.0,0.28388288]
[1763026755633,0.02369636,103080.0,103070.0,0.26388288]
[1763026755866,0.02369636,103080.0,103070.0,0.30701288]
[1763026756353,0.00574,103080.0,103070.0,0.28701288]
[1763026756593,0.25198267,103090.0,103080.0,0.19402405]
[1763026756782,0.27040204,103090.0,103080.0,0.21402405]
[1763026757040,0.28187204,103090.0,103080.0,0.21402405]
[1763026757221,0.27040204,103090.0,103080.0,0.26459405]
[1763026757923,0.27140204,103090.0,103080.0,0.24146405]
[1763026758132,0.27240204,103090.0,103080.0,0.02744]
[1763026758338,0.27240204,103090.0,103080.0,0.04744]
[1763026758540,0.27240204,103090.0,103080.0,0.24146405]
[1763026759391,0.27040204,103090.0,103080.0,0.24146405]
[1763026759599,0.27140204,103090.0,103080.0,0.24146405]
[1763026760455,0.27139739,103090.0,103080.0,0.24146405]
[1763026760864,0.27139739,103090.0,103080.0,0.22146405]
[1763026761069,0.21341995,103090.0,103080.0,0.26459405]
[1763026761524,0.01941472,103090.0,103080.0,0.26459405]
[1763026761750,0.21341995,103090.0,103080.0,0.26459405]
[1763026761971,0.19402405,103080.0,103070.0,0.27134934]
[1763026762177,0.47274712,103090.0,103070.0,0.29134934]
[1763026762375,0.19402405,103080.0,103070.0,0.29134934]
[1763026762804,0.19402405,103080.0,103070.0,0.30700934]
[1763026763364,0.46027712,103090.0,103070.0,0.30700934]
[1763026763549,0.19402405,103080.0,103070.0,0.30700934]
[1763026764253,0.19402405,103080.0,103070.0,0.28700934]
[1763026764467,0.01250069,103080.0,103070.0,0.30700934]
[1763026764679,0.20652474,103080.0,103070.0,0.26460934]
[1763026764826,0.01250069,103080.0,103070.0,0.30696934]
[1763026765022,0.01250069,103080.0,103070.0,0.28696934]
[1763026765253,0.01250069,103080.0,103070.0,0.30696934]
[1763026766063,0.01250069,103080.0,103070.0,0.53071165]
[1763026767398,0.01250069,103080.0,103070.0,0.75445396]
[1763026767950,0.01250069,103080.0,103070.0,0.53071165]
[1763026768152,0.01250069,103080.0,103070.0,0.75445396]
[1763026768939,0.01250069,103080.0,103070.0,0.97819627]
[1763026769340,0.01250069,103080.0,103070.0,0.75445396]
[1763026770409,0.01250069,103080.0,103070.0,0.73445396]
[1763026770827,0.01250069,103080.0,103070.0,0.75445396]
[1763026773375,0.01250069,103080.0,103070.0,0.73445396]
[1763026773596,0.01250069,103080.0,103070.0,0.75445396]
[1763026778686,0.01250069,103080.0,103070.0,0.97819627]
[1763026778897,0.00046549,103090.0,103080.0,0.51702405]
[1763026779175,0.00046549,103090.0,103080.0,1.93053791]
[1763026780220,0.00046549,103090.0,103080.0,1.93253791]
[1763026780347,0.00046549,103090.0,103080.0,1.95064107]
[1763026781181,1e-08,103130.0,103120.0,0.21394879]
[1763026781386,0.01811491,103130.0,103120.0,0.4862511]
[1763026781622,0.02710255,103130.0,103120.0,0.75289341]
[1763026782258,0.02710255,103130.0,103120.0,0.5291511]
[1763026782465,0.02710255,103130.0,103120.0,0.75289341]
[1763026782643,0.00013963,103130.0,103120.0,0.5291511]
[1763026782851,0.00013963,103130.0,103120.0,0.75289341]
[1763026783801,0.00013963,103130.0,103120.0,0.28540879]
[1763026784007,0.00013963,103130.0,103120.0,0.5291511]
[1763026786087,0.00013963,103130.0,103120.0,0.75289341]
[1763026786297,0.00013963,103130.0,103120.0,0.5291511]
[1763026786504,0.00013963,103130.0,103120.0,0.75289341]
[1763026786946,0.00013963,103130.0,103120.0,0.5291511]
[1763026788647,0.19406962,103130.0,103120.0,0.22014879]
[1763026788956,0.00013963,103130.0,103120.0,0.28250879]
[1763026789159,0.19406962,103130.0,103120.0,0.28250879]
[1763026789787,0.19406962,103130.0,103120.0,0.30540879]
[1763026790780,0.19406962,103130.0,103120.0,0.28540879]
[1763026790978,0.00013963,103130.0,103120.0,0.30540879]
[1763026791766,0.19406962,103130.0,103120.0,0.30540879]
[1763026792459,0.00013963,103130.0,103120.0,0.30540879]
[1763026792664,0.19406962,103130.0,103120.0,0.30540879]
[1763026794320,0.00013963,103130.0,103120.0,0.30540879]
[1763026794534,0.00013963,103130.0,103120.0,0.28540879]
[1763026794746,0.00013963,103130.0,103120.0,0.75289341]
[1763026795883,0.00013963,103130.0,103120.0,1.97086265]
[1763026796084,0.00013963,103130.0,103120.0,1.97186265]
[1763026796285,0.00013963,103130.0,103120.0,1.30063572]
[1763026797249,0.00013963,103130.0,103120.0,1.30163572]
[1763026797449,0.00013963,103130.0,103120.0,0.56804879]
[1763026797660,0.00013963,103130.0,103120.0,0.8341111]
[1763026797875,0.00013963,103130.0,103120.0,1.07785341]
[1763026798303,0.00013963,103130.0,103120.0,0.5311111]
[1763026798919,0.00013963,103130.0,103120.0,0.75485341]
[1763026802423,0.00013963,103130.0,103120.0,0.73485341]
[1763026802607,0.00013963,103130.0,103120.0,0.75485341]
[1763026803028,0.00013963,103130.0,103120.0,0.90328845]
[1763026803240,0.00013963,103130.0,103120.0,0.88328845]
[1763026803671,0.00013963,103130.0,103120.0,0.90328845]
[1763026803883,0.00013963,103130.0,103120.0,0.60532862]
[1763026804993,0.00013963,103130.0,103120.0,0.58532862]
[1763026805199,0.00013963,103130.0,103120.0,0.60532862]
[1763026806294,0.19406962,103130.0,103120.0,0.60532862]
[1763026806512,0.19406962,103130.0,103120.0,0.0711]
[1763026806717,0.21700962,103130.0,103120.0,0.04432]
[1763026806934,0.51496945,103130.0,103120.0,0.04432]
[1763026807347,0.51496945,103130.0,103120.0,0.04332]
[1763026808005,0.19398642,103100.0,103090.0,0.23727893]
[1763026808227,0.20545642,103100.0,103090.0,0.26994523]
[1763026808429,0.20545642,103100.0,103090.0,0.58367506]
[1763026808642,0.01147,103100.0,103090.0,0.58367506]
[1763026808870,0.01147,103110.0,103100.0,0.19398642]
[1763026809080,0.01147,103110.0,103100.0,0.22171642]
[1763026809315,0.2054376,103110.0,103100.0,0.56305625]
[1763026809552,0.01147,103110.0,103100.0,0.56305625]
[1763026809757,0.01147,103110.0,103100.0,0.54305625]
[1763026809978,0.2054376,103110.0,103100.0,0.56305625]
[1763026810391,0.01147,103110.0,103100.0,0.56305625]
[1763026810593,0.2054376,103110.0,103100.0,0.56305625]
[1763026810802,0.01147,103110.0,103100.0,0.56305625]
[1763026810992,0.2054376,103110.0,103100.0,0.56405625]
[1763026811240,0.2054376,103110.0,103100.0,0.26609642]
[1763026811417,0.2054376,103110.0,103100.0,0.22271642]
[1763026811651,0.2054376,103110.0,103100.0,0.24271642]
[1763026811861,0.2169076,103110.0,103100.0,0.22694642]
[1763026812274,0.2169076,103110.0,103100.0,0.01296]
[1763026812520,0.2169076,103110.0,103100.0,0.001]
[1763026812724,0.2169076,103110.0,103100.0,0.002]
[1763026813143,0.2169076,103110.0,103100.0,0.022]
[1763026813369,0.2169076,103110.0,103100.0,0.002]
[1763026813787,0.2169076,103110.0,103100.0,0.022]
[1763026814007,0.2169076,103110.0,103100.0,0.002]
[1763026814573,0.2169076,103110.0,103100.0,0.21598642]
[1763026814981,0.2169076,103110.0,103100.0,0.022]
[1763026815561,0.52633743,103110.0,103100.0,0.002]
[1763026815742,0.2283776,103110.0,103100.0,0.04432]
[1763026815890,0.2283776,103110.0,103100.0,0.06432]
[1763026816307,0.2283776,103110.0,103100.0,0.04432]
[1763026816511,0.2283776,103110.0,103100.0,0.04332]
[1763026816705,0.2293776,103110.0,103100.0,0.04332]
[1763026816910,0.52733743,103110.0,103100.0,0.04332]
[1763026817190,0.52733743,103110.0,103100.0,0.04232]
[1763026817574,0.02394,103110.0,103100.0,0.24826642]
[1763026817777,0.02394,103110.0,103100.0,0.30741642]
[1763026817778,0.2064376,103110.0,103100.0,0.30741642]
[1763026817950,0.2064376,103110.0,103100.0,0.28403642]
[1763026818156,0.2179076,103110.0,103100.0,0.28403642]
[1763026818342,0.2179076,103110.0,103100.0,0.26403642]
[1763026818541,0.2179076,103110.0,103100.0,0.28403642]
[1763026821141,0.2179076,103110.0,103100.0,0.09005]
[1763026821350,0.2179076,103110.0,103100.0,0.26826642]
[1763026822745,0.2179076,103110.0,103100.0,0.04232]
[1763026822951,0.2293776,103110.0,103100.0,0.06232]
[1763026824149,0.2293776,103110.0,103100.0,0.04232]
[1763026824353,0.2293776,103110.0,103100.0,0.06232]
[1763026824869,0.2293776,103110.0,103100.0,0.04232]
[1763026825495,0.2293776,103110.0,103100.0,0.06232]
[1763026826297,0.2293776,103110.0,103100.0,0.04232]
[1763026827102,0.2293776,103110.0,103100.0,0.06232]
[1763026827811,0.2293776,103110.0,103100.0,0.04232]
[1763026828023,0.2293776,103110.0,103100.0,0.06232]
[1763026828229,0.52733743,103110.0,103100.0,0.06232]
[1763026828427,0.52733743,103110.0,103100.0,0.04232]
[1763026828865,0.2179076,103110.0,103100.0,0.23630642]
[1763026829071,0.2179076,103110.0,103100.0,0.25630642]
[1763026829474,0.2179076,103110.0,103100.0,0.06232]
[1763026829676,0.2293776,103110.0,103100.0,0.04232]
[1763026829871,0.2293776,103110.0,103100.0,0.23630642]
[1763026830137,0.2293776,103110.0,103100.0,0.04232]
[1763026831013,0.52733743,103110.0,103100.0,0.04232]
[1763026831445,0.76983743,103110.0,103100.0,0.04232]
[1763026832271,0.78060211,103110.0,103100.0,0.04232]
[1763026832501,0.82402085,103110.0,103100.0,0.04232]
[1763026832706,0.19400523,103090.0,103080.0,0.01135]
[1763026832915,0.20547523,103090.0,103080.0,0.26769405]
[1763026833326,0.20547523,103090.0,103080.0,0.07367]
[1763026833534,0.20547523,103090.0,103080.0,0.25634405]
[1763026833760,0.21694523,103090.0,103080.0,0.25634405]
[1763026833967,0.21699174,103090.0,103080.0,0.25634405]
[1763026834175,0.21699174,103090.0,103080.0,0.25834405]
[1763026834612,0.01151651,103090.0,103080.0,0.28549405]
[1763026834827,0.01151651,103090.0,103080.0,0.28449405]
[1763026835005,4.651e-05,103090.0,103080.0,0.28349405]
[1763026835333,0.19405174,103090.0,103080.0,0.28349405]
[1763026836207,0.20552174,103090.0,103080.0,0.26787405]
[1763026836611,0.19402405,103080.0,103070.0,0.25977148]
[1763026836815,0.20549405,103080.0,103070.0,0.27741148]
[1763026837471,0.20549405,103080.0,103070.0,0.59099131]
[1763026837678,0.19405174,103090.0,103070.0,0.59567131]
[1763026837893,0.19402405,103080.0,103070.0,0.61667131]
[1763026838136,0.20549405,103080.0,103070.0,0.24971288]
[1763026838313,0.20549405,103080.0,103070.0,0.05567]
[1763026838753,0.21696405,103080.0,103070.0,0.04432]
[1763026838962,0.21696405,103080.0,103070.0,0.06432]
[1763026839166,0.21696405,103080.0,103070.0,0.04432]
[1763026839382,0.21696405,103080.0,103070.0,0.04332]
[1763026839593,0.21696405,103080.0,103070.0,0.06332]
[1763026839815,1.2984044,103080.0,103070.0,0.002]
[1763026840242,1.2984044,103080.0,103070.0,0.001]
[1763026840463,0.19406171,103060.0,103050.0,0.04232]
[1763026840679,0.21700171,103060.0,103050.0,0.04232]
[1763026840919,0.52643154,103060.0,103050.0,0.04232]
[1763026843147,0.22847171,103060.0,103050.0,0.04232]
[1763026843367,0.22847171,103060.0,103050.0,0.23640054]
[1763026843572,0.22847171,103060.0,103050.0,0.25640054]
[1763026844490,0.64668508,103060.0,103020.0,0.01153]
[1763026844711,0.20383692,103040.0,103030.0,0.02]
[1763026844937,0.20383692,103040.0,103020.0,0.24798586]
[1763026845173,0.21530692,103040.0,103030.0,0.02]
[1763026845383,0.20556937,103040.0,103030.0,0.02]
[1763026845599,0.21703937,103040.0,103020.0,0.29266586]
[1763026846021,0.19411821,103030.0,103020.0,0.05385]
[1763026846245,0.20558821,103030.0,103020.0,0.05385]
[1763026846472,0.51501804,103030.0,103020.0,0.04732]
[1763026846686,0.51501804,103030.0,103020.0,0.04432]
[1763026846894,0.51501804,103030.0,103020.0,0.04232]
[1763026848439,0.51501804,103030.0,103020.0,0.05232]
[1763026849346,0.21705821,103030.0,103020.0,0.05232]
[1763026849567,0.51601804,103030.0,103020.0,0.05232]
[1763026849784,0.21805821,103030.0,103020.0,0.05232]
[1763026850002,0.51601804,103030.0,103020.0,0.05232]
[1763026851142,0.88243678,103030.0,103020.0,0.05232]
[1763026851796,0.91157712,103030.0,103020.0,0.05232]
[1763026852020,0.91157712,103030.0,103020.0,0.01]
[1763026852459,1.20953695,103030.0,103020.0,0.01]
[1763026852678,0.56059349,103000.0,102990.0,0.0004]
[1763026852917,1.21030315,103000.0,102990.0,0.0004]
[1763026853139,1.22177315,103000.0,102990.0,0.0004]
[1763026853356,1.25092411,103000.0,102990.0,0.0004]
[1763026853982,1.25092411,103000.0,102990.0,0.00086549]
[1763026854217,1.34732359,103000.0,102990.0,0.00086549]
[1763026854880,0.70908393,103000.0,102990.0,0.00086549]
[1763026855098,1.60559393,103000.0,102990.0,0.00086549]
[1763026855536,1.08209945,103000.0,102990.0,0.00086549]
[1763026856856,0.61268445,103000.0,102990.0,0.00086549]
[1763026857322,1.03977945,103000.0,102990.0,0.01086549]
[1763026857752,1.28227945,103000.0,102990.0,0.01086549]
[1763026858422,1.28227945,103000.0,102990.0,0.01135438]
[1763026858631,1.37867893,103000.0,102990.0,0.01135438]
[1763026859015,1.37867893,103000.0,102990.0,0.03135438]
[1763026859214,1.37867893,103000.0,102990.0,0.01135438]
[1763026859450,1.37867893,103000.0,102990.0,0.03135438]
[1763026859653,0.95158393,103000.0,102990.0,0.01135438]
[1763026859859,0.95158393,103000.0,102990.0,0.03135438]
[1763026860273,0.92243297,103000.0,102990.0,0.22554799]
[1763026860476,0.82603349,103000.0,102990.0,0.22554799]
[1763026860686,0.2425,103000.0,102990.0,0.25221799]
[1763026860896,0.57683174,103010.0,103000.0,0.21417475]
[1763026861126,0.60878048,103010.0,103000.0,0.25653475]
[1763026861330,0.37120439,103010.0,103000.0,0.25653475]
[1763026861552,0.24445858,103020.0,103010.0,0.2141559]
[1763026861767,0.86371321,103030.0,103020.0,0.19413706]
[1763026861768,0.87518321,103030.0,103020.0,0.19413706]
[1763026861988,0.52860706,103020.0,103010.0,0.2141559]
[1763026862244,0.33447,103020.0,103010.0,0.2057859]
[1763026862461,0.52860706,103020.0,103010.0,0.2208259]
[1763026862664,0.52860706,103020.0,103010.0,0.2408259]
[1763026862870,0.01147,103020.0,103010.0,0.2408259]
[1763026863079,0.05967439,103020.0,103010.0,0.2408259]
[1763026863507,0.06167439,103020.0,103010.0,0.2408259]
[1763026863948,0.06267439,103020.0,103010.0,0.2208259]
[1763026864173,0.20860706,103020.0,103010.0,0.2408259]
[1763026864405,0.01447,103020.0,103010.0,0.2208259]
[1763026864657,0.003,103020.0,103010.0,0.2650259]
[1763026865320,0.001,103020.0,103010.0,0.2650259]
[1763026865747,0.1941559,103010.0,103000.0,0.06656]
[1763026865972,0.01147,103010.0,103000.0,0.23653475]
[1763026866387,0.2056259,103010.0,103000.0,0.04260442]
[1763026866599,0.2056259,103010.0,103000.0,0.25677917]
[1763026866812,0.2056259,103010.0,103000.0,0.04260442]
[1763026867025,0.47160865,103010.0,103000.0,0.06260442]
[1763026867233,0.47160865,103010.0,103000.0,0.04260442]
[1763026867459,0.56660175,103010.0,103000.0,0.04260442]
[1763026867669,0.47160865,103010.0,103000.0,0.04260442]
[1763026867911,0.79460865,103010.0,103000.0,0.04260442]
[1763026868388,0.81251595,103010.0,103000.0,0.04260442]
[1763026868675,0.44376607,103020.0,103010.0,0.1941559]
[1763026868868,0.05967439,103020.0,103010.0,0.2365159]
[1763026869076,0.25381145,103020.0,103010.0,0.2365159]
[1763026869285,0.05967439,103020.0,103010.0,0.2565159]
[1763026869489,0.25381145,103020.0,103010.0,0.2565159]
[1763026869933,0.20760706,103020.0,103010.0,0.2684859]
[1763026870343,0.5227942,103020.0,103010.0,0.04236]
[1763026870550,0.5227942,103020.0,103010.0,0.05236]
[1763026870760,0.5227942,103020.0,103010.0,0.2465159]
[1763026870939,0.5227942,103020.0,103010.0,0.2665159]
[1763026871240,0.5227942,103020.0,103010.0,0.05236]
[1763026871451,0.91712517,103020.0,103010.0,0.01]
[1763026871665,0.56621294,103020.0,103010.0,0.2465159]
[1763026871977,0.82072569,103020.0,103010.0,0.05236]
[1763026872212,0.82072569,103020.0,103010.0,0.2465159]
[1763026872213,0.31170019,103020.0,103010.0,0.2465159]
[1763026872492,0.56621294,103020.0,103010.0,0.2665159]
[1763026872718,0.5227942,103020.0,103010.0,0.2665159]
[1763026873569,0.31718714,103020.0,103010.0,0.2665159]
[1763026873773,0.01447,103020.0,103010.0,0.2784859]
[1763026873922,0.25681145,103020.0,103010.0,0.2784859]
[1763026874324,0.06267439,103020.0,103010.0,0.2784859]
[1763026874944,0.01447,103020.0,103010.0,0.2784859]
[1763026875154,0.26828145,103020.0,103010.0,0.2465159]
[1763026875426,0.26898275,103020.0,103010.0,0.2465159]
[1763026875628,0.01447,103020.0,103010.0,0.2665159]
[1763026875856,0.25681145,103020.0,103010.0,0.2665159]
[1763026876064,0.01447,103020.0,103010.0,0.2665159]
[1763026876279,0.003,103020.0,103010.0,0.3072259]
[1763026876709,0.003,103020.0,103010.0,0.2630259]
[1763026876928,0.20860706,103020.0,103010.0,0.2830259]
[1763026877138,0.20560706,103020.0,103010.0,0.2665159]
[1763026877351,0.01147,103020.0,103010.0,0.2665159]
[1763026877529,0.01247,103020.0,103010.0,0.2665159]
[1763026878157,0.001,103020.0,103010.0,0.2830259]
[1763026878376,0.001,103020.0,103010.0,0.54173865]
[1763026878591,0.001,103020.0,103010.0,0.56173865]
[1763026879866,0.001,103020.0,103010.0,0.56273865]
[1763026880109,0.2425,103030.0,103020.0,0.19413706]
[1763026880314,0.2425,103030.0,103020.0,0.25484706]
[1763026883312,0.2425,103030.0,103020.0,0.23484706]
[1763026883513,0.2425,103030.0,103020.0,0.25484706]
[1763026884163,0.2425,103030.0,103020.0,0.50935981]
[1763026885060,0.2425,103030.0,103020.0,0.48935981]
[1763026885283,0.2425,103030.0,103020.0,0.50935981]
[1763026885960,0.2425,103030.0,103020.0,0.51035981]
[1763026886424,0.2425,103030.0,103020.0,0.76587256]
[1763026886650,0.2425,103030.0,103020.0,0.51135981]
[1763026887094,0.60202479,103060.0,103040.0,0.19408378]
[1763026887095,0.84452479,103060.0,103040.0,0.19408378]